[Event "Titled Tuesday Blitz March 21 Late 2023"]
[White "Naroditsky, Daniel"]
[Black "Sanal, Vahap"]
[WhiteFideId "2026961"]
[BlackFideId "6300545"]
[WhiteElo "2633"]
[BlackElo "2606"]
[Result "1-0"]
[Round "06"]
[TimeControl "180+2"]
[Date "2023.03.21"]
[WhiteClock "0:01:27"]
[BlackClock "0:01:21"]

1. d4 {[%clk 0:03:00]}  Nf6 {[%clk 0:02:55]} 2. Nc3 {[%clk 0:03:01]}  d5 {[%clk 0:02:55]} 3. Bf4 {[%clk 0:03:02]}  e6 {[%clk 0:02:54]} 4. Nb5 {[%clk 0:03:01]}  Na6 {[%clk 0:02:53]} 5. e3 {[%clk 0:03:02]}  c6 {[%clk 0:02:54]} 6. Nc3 {[%clk 0:03:02]}  Bd6 {[%clk 0:02:55]} 7. Nf3 {[%clk 0:02:54]}  O-O {[%clk 0:02:55]} 8. Bxd6 {[%clk 0:02:52]}  Qxd6 {[%clk 0:02:55]} 9. Bxa6 {[%clk 0:02:53]}  bxa6 {[%clk 0:02:55]} 10. Na4 {[%clk 0:02:54]}  Ne4 {[%clk 0:02:51]} 11. Nd2 {[%clk 0:02:54]}  Nxd2 {[%clk 0:02:42]} 12. Qxd2 {[%clk 0:02:54]}  e5 {[%clk 0:02:36]} 13. O-O-O {[%clk 0:02:46]}  Rb8 {[%clk 0:02:33]} 14. Nc5 {[%clk 0:02:44]}  Bf5 {[%clk 0:02:30]} 15. Qc3 {[%clk 0:02:42]}  Rfe8 {[%clk 0:02:21]} 16. Nxa6 {[%clk 0:02:25]}  Rb6 {[%clk 0:02:20]} 17. Nc5 {[%clk 0:02:26]}  e4 {[%clk 0:02:13]} 18. b3 {[%clk 0:02:22]}  Qg6 {[%clk 0:02:12]} 19. Rhg1 {[%clk 0:02:20]}  Bc8 {[%clk 0:02:12]} 20. Kb2 {[%clk 0:02:15]}  Qf6 {[%clk 0:02:10]} 21. Qd2 {[%clk 0:01:56]}  Rb5 {[%clk 0:02:07]} 22. Kb1 {[%clk 0:01:49]}  Bf5 {[%clk 0:02:03]} 23. a4 {[%clk 0:01:48]}  Rbb8 {[%clk 0:02:03]} 24. g4 {[%clk 0:01:45]}  Bg6 {[%clk 0:02:02]} 25. Nd7 {[%clk 0:01:46]}  Qd6 {[%clk 0:02:01]} 26. Nxb8 {[%clk 0:01:46]}  Rxb8 {[%clk 0:02:01]} 27. Qc3 {[%clk 0:01:46]}  h6 {[%clk 0:01:50]} 28. h4 {[%clk 0:01:42]}  f6 {[%clk 0:01:37]} 29. Kb2 {[%clk 0:01:36]}  Qh2 {[%clk 0:01:24]} 30. Qxc6 {[%clk 0:01:29]}  Qxf2 {[%clk 0:01:22]} 31. g5 {[%clk 0:01:29]}  fxg5 {[%clk 0:01:21]} 32. Qxg6 {[%clk 0:01:27]} 1-0


[Site "https://www.chess.com"]

[Event "Titled Tuesday Blitz March 21 Late 2023"]
[White "Grigoriants, Sergey"]
[Black "Melkumyan, Hrant"]
[WhiteFideId "4130804"]
[BlackFideId "13302485"]
[WhiteElo "2502"]
[BlackElo "2604"]
[Result "1-0"]
[Round "06"]
[TimeControl "180+2"]
[Date "2023.03.21"]
[WhiteClock "0:00:05"]
[BlackClock "0:00:01"]

1. d4 {[%clk 0:02:56]}  Nf6 {[%clk 0:02:57]} 2. c4 {[%clk 0:02:55]}  g6 {[%clk 0:02:57]} 3. f3 {[%clk 0:02:54]}  d6 {[%clk 0:02:54]} 4. e4 {[%clk 0:02:54]}  Bg7 {[%clk 0:02:54]} 5. Nc3 {[%clk 0:02:53]}  a6 {[%clk 0:02:53]} 6. Be3 {[%clk 0:02:52]}  O-O {[%clk 0:02:50]} 7. Nge2 {[%clk 0:02:48]}  b5 {[%clk 0:02:50]} 8. cxb5 {[%clk 0:02:45]}  axb5 {[%clk 0:02:51]} 9. Nxb5 {[%clk 0:02:45]}  c6 {[%clk 0:02:52]} 10. Nbc3 {[%clk 0:02:45]}  Nbd7 {[%clk 0:02:53]} 11. Ng3 {[%clk 0:02:40]}  e5 {[%clk 0:02:50]} 12. Be2 {[%clk 0:02:38]}  d5 {[%clk 0:02:46]} 13. dxe5 {[%clk 0:02:33]}  Nxe5 {[%clk 0:02:45]} 14. O-O {[%clk 0:02:31]}  Re8 {[%clk 0:02:40]} 15. Qd2 {[%clk 0:02:24]}  h5 {[%clk 0:02:35]} 16. h4 {[%clk 0:01:59]}  Nh7 {[%clk 0:02:24]} 17. Bf2 {[%clk 0:01:51]}  d4 {[%clk 0:02:18]} 18. Rfd1 {[%clk 0:01:44]}  c5 {[%clk 0:02:12]} 19. Nd5 {[%clk 0:01:44]}  Be6 {[%clk 0:02:00]} 20. b4 {[%clk 0:01:33]}  Bxd5 {[%clk 0:01:51]} 21. exd5 {[%clk 0:01:34]}  cxb4 {[%clk 0:01:37]} 22. Bb5 {[%clk 0:00:47]}  Re7 {[%clk 0:01:15]} 23. Qxb4 {[%clk 0:00:47]}  Rb7 {[%clk 0:01:04]} 24. a4 {[%clk 0:00:46]}  Qxd5 {[%clk 0:00:59]} 25. Rac1 {[%clk 0:00:35]}  Nf8 {[%clk 0:00:29]} 26. Rxd4 {[%clk 0:00:26]}  Qe6 {[%clk 0:00:14]} 27. Re4 {[%clk 0:00:27]}  Qd5 {[%clk 0:00:09]} 28. Qc5 {[%clk 0:00:21]}  Rd8 {[%clk 0:00:05]} 29. Qxd5 {[%clk 0:00:19]}  Rxd5 {[%clk 0:00:06]} 30. Rce1 {[%clk 0:00:14]}  Ne6 {[%clk 0:00:05]} 31. f4 {[%clk 0:00:10]}  Nd3 {[%clk 0:00:05]} 32. Bc6 {[%clk 0:00:11]}  Rdd7 {[%clk 0:00:02]} 33. Bxd7 {[%clk 0:00:07]}  Rxd7 {[%clk 0:00:02]} 34. Rd1 {[%clk 0:00:07]}  Rd6 {[%clk 0:00:01]} 35. f5 {[%clk 0:00:05]} 1-0


[Site "https://www.chess.com"]

[Event "Titled Tuesday Blitz March 21 Late 2023"]
[White "Kuznetsov, Felix"]
[Black "Durarbayli, Vasif"]
[WhiteFideId "34147990"]
[BlackFideId "13402935"]
[WhiteElo "2235"]
[BlackElo "2543"]
[Result "1-0"]
[Round "06"]
[TimeControl "180+2"]
[Date "2023.03.21"]
[WhiteClock "0:00:06"]
[BlackClock "0:00:32"]

1. e4 {[%clk 0:03:00]}  c5 {[%clk 0:02:59]} 2. Nc3 {[%clk 0:02:59]}  d6 {[%clk 0:02:59]} 3. d4 {[%clk 0:02:59]}  cxd4 {[%clk 0:02:59]} 4. Qxd4 {[%clk 0:03:00]}  Nf6 {[%clk 0:02:59]} 5. b3 {[%clk 0:03:00]}  g6 {[%clk 0:02:59]} 6. Bb2 {[%clk 0:03:00]}  Bg7 {[%clk 0:02:59]} 7. O-O-O {[%clk 0:02:59]}  O-O {[%clk 0:02:59]} 8. Kb1 {[%clk 0:02:57]}  Nc6 {[%clk 0:02:49]} 9. Qd2 {[%clk 0:02:57]}  a5 {[%clk 0:02:44]} 10. f3 {[%clk 0:02:53]}  Be6 {[%clk 0:02:42]} 11. Nge2 {[%clk 0:02:46]}  a4 {[%clk 0:02:42]} 12. Nxa4 {[%clk 0:02:32]}  Rxa4 {[%clk 0:02:42]} 13. bxa4 {[%clk 0:02:32]}  Qb6 {[%clk 0:02:40]} 14. a5 {[%clk 0:01:55]}  Nxa5 {[%clk 0:02:35]} 15. Qd4 {[%clk 0:01:44]}  Qa6 {[%clk 0:02:30]} 16. Nf4 {[%clk 0:01:35]}  Bc4 {[%clk 0:02:30]} 17. Nd5 {[%clk 0:01:18]}  Bxf1 {[%clk 0:01:52]} 18. Nxe7+ {[%clk 0:01:15]}  Kh8 {[%clk 0:01:52]} 19. Qxf6 {[%clk 0:01:13]}  Rg8 {[%clk 0:01:44]} 20. Rxd6 {[%clk 0:01:08]}  Nc6 {[%clk 0:01:36]} 21. Nxc6 {[%clk 0:00:58]}  h5 {[%clk 0:01:31]} 22. Ne7 {[%clk 0:00:46]}  Qb5 {[%clk 0:01:25]} 23. Nxg8 {[%clk 0:00:11]}  Bxf6 {[%clk 0:01:19]} 24. Nxf6 {[%clk 0:00:11]}  Kg7 {[%clk 0:01:08]} 25. Rd8 {[%clk 0:00:09]}  Bxg2 {[%clk 0:00:53]} 26. Rg1 {[%clk 0:00:06]}  Bxf3 {[%clk 0:00:35]} 27. Nxh5+ {[%clk 0:00:05]}  Kh6 {[%clk 0:00:32]} 28. Rh8# {[%clk 0:00:06]} 1-0


[Site "https://www.chess.com"]

[Event "Titled Tuesday Blitz March 21 Late 2023"]
[White "Bilych, Olexiy"]
[Black "Ibarra Jerez, Jose Carlos"]
[WhiteFideId "14156504"]
[BlackFideId "2226332"]
[WhiteElo "2320"]
[BlackElo "2638"]
[Result "1/2-1/2"]
[Round "06"]
[TimeControl "180+2"]
[Date "2023.03.21"]
[WhiteClock "0:00:16"]
[BlackClock "0:00:08"]

1. d4 {[%clk 0:03:00]}  Nf6 {[%clk 0:02:59]} 2. c4 {[%clk 0:03:01]}  d6 {[%clk 0:03:00]} 3. Nf3 {[%clk 0:03:00]}  g6 {[%clk 0:03:00]} 4. Nc3 {[%clk 0:02:56]}  Bf5 {[%clk 0:03:00]} 5. Nh4 {[%clk 0:02:55]}  Bd7 {[%clk 0:03:00]} 6. Nf3 {[%clk 0:02:56]}  Bf5 {[%clk 0:03:00]} 7. g3 {[%clk 0:02:48]}  Ne4 {[%clk 0:03:00]} 8. Nxe4 {[%clk 0:02:42]}  Bxe4 {[%clk 0:03:01]} 9. Bg2 {[%clk 0:02:43]}  Bg7 {[%clk 0:03:01]} 10. O-O {[%clk 0:02:43]}  O-O {[%clk 0:03:02]} 11. b3 {[%clk 0:02:40]}  c5 {[%clk 0:03:02]} 12. Bb2 {[%clk 0:02:41]}  Nc6 {[%clk 0:03:02]} 13. e3 {[%clk 0:02:36]}  d5 {[%clk 0:03:03]} 14. Qe2 {[%clk 0:02:15]}  dxc4 {[%clk 0:02:54]} 15. bxc4 {[%clk 0:02:15]}  Qb6 {[%clk 0:02:50]} 16. Rad1 {[%clk 0:01:38]}  Rfd8 {[%clk 0:02:46]} 17. Rfe1 {[%clk 0:01:25]}  Rac8 {[%clk 0:02:37]} 18. Ne5 {[%clk 0:01:19]}  Bxg2 {[%clk 0:02:33]} 19. Kxg2 {[%clk 0:01:19]}  Nxe5 {[%clk 0:01:53]} 20. dxe5 {[%clk 0:01:20]}  Qc6+ {[%clk 0:01:54]} 21. Qf3 {[%clk 0:01:17]}  Qa6 {[%clk 0:01:53]} 22. e6 {[%clk 0:00:48]}  Bxb2 {[%clk 0:01:33]} 23. Qxf7+ {[%clk 0:00:46]}  Kh8 {[%clk 0:01:34]} 24. Rxd8+ {[%clk 0:00:46]}  Rxd8 {[%clk 0:01:34]} 25. Qxe7 {[%clk 0:00:47]}  Qc6+ {[%clk 0:01:34]} 26. Kg1 {[%clk 0:00:32]}  Re8 {[%clk 0:01:34]} 27. Qf7 {[%clk 0:00:33]}  Qxe6 {[%clk 0:01:17]} 28. Qxb7 {[%clk 0:00:32]}  Bf6 {[%clk 0:01:07]} 29. Rd1 {[%clk 0:00:29]}  Re7 {[%clk 0:01:03]} 30. Qd5 {[%clk 0:00:18]}  Qxd5 {[%clk 0:00:50]} 31. Rxd5 {[%clk 0:00:19]}  Re5 {[%clk 0:00:50]} 32. Rd7 {[%clk 0:00:18]}  Re7 {[%clk 0:00:41]} 33. Rd8+ {[%clk 0:00:16]}  Kg7 {[%clk 0:00:40]} 34. Rc8 {[%clk 0:00:16]}  Re6 {[%clk 0:00:15]} 35. Rxc5 {[%clk 0:00:15]}  Ra6 {[%clk 0:00:13]} 36. Rc7+ {[%clk 0:00:15]}  Kh6 {[%clk 0:00:13]} 37. c5 {[%clk 0:00:15]}  Rxa2 {[%clk 0:00:13]} 38. c6 {[%clk 0:00:16]}  a5 {[%clk 0:00:12]} 39. Ra7 {[%clk 0:00:15]}  Rc2 {[%clk 0:00:10]} 40. Rxa5 {[%clk 0:00:14]}  Rxc6 {[%clk 0:00:10]} 41. h4 {[%clk 0:00:14]}  Kg7 {[%clk 0:00:10]} 42. Kg2 {[%clk 0:00:14]}  h5 {[%clk 0:00:10]} 43. Kf3 {[%clk 0:00:14]}  Re6 {[%clk 0:00:10]} 44. Rb5 {[%clk 0:00:13]}  Be7 {[%clk 0:00:11]} 45. Ra5 {[%clk 0:00:13]}  Bb4 {[%clk 0:00:11]} 46. Rb5 {[%clk 0:00:13]}  Be1 {[%clk 0:00:11]} 47. Ke2 {[%clk 0:00:13]}  Bc3 {[%clk 0:00:12]} 48. Rb7+ {[%clk 0:00:13]}  Kh6 {[%clk 0:00:12]} 49. Rb5 {[%clk 0:00:13]}  Bf6 {[%clk 0:00:12]} 50. Kf3 {[%clk 0:00:14]}  Be7 {[%clk 0:00:12]} 51. Kg2 {[%clk 0:00:14]}  Rf6 {[%clk 0:00:12]} 52. Ra5 {[%clk 0:00:13]}  Rc6 {[%clk 0:00:12]} 53. Re5 {[%clk 0:00:13]}  Bf6 {[%clk 0:00:12]} 54. Rd5 {[%clk 0:00:14]}  Rc2 {[%clk 0:00:12]} 55. Rd7 {[%clk 0:00:10]}  Rb2 {[%clk 0:00:12]} 56. Rf7 {[%clk 0:00:10]}  Bc3 {[%clk 0:00:12]} 57. Kf3 {[%clk 0:00:10]}  Be1 {[%clk 0:00:12]} 58. Kg2 {[%clk 0:00:11]}  g5 {[%clk 0:00:11]} 59. Rf6+ {[%clk 0:00:10]}  Kg7 {[%clk 0:00:11]} 60. hxg5 {[%clk 0:00:11]}  Rb5 {[%clk 0:00:10]} 61. f4 {[%clk 0:00:10]}  Rb2+ {[%clk 0:00:10]} 62. Kh3 {[%clk 0:00:10]}  Re2 {[%clk 0:00:09]} 63. Re6 {[%clk 0:00:10]}  Bf2 {[%clk 0:00:09]} 64. f5 {[%clk 0:00:09]}  Be1 {[%clk 0:00:06]} 65. Re7+ {[%clk 0:00:09]}  Kf8 {[%clk 0:00:06]} 66. f6 {[%clk 0:00:09]}  Bc3 {[%clk 0:00:05]} 67. g4 {[%clk 0:00:08]}  hxg4+ {[%clk 0:00:04]} 68. Kxg4 {[%clk 0:00:09]}  Rf2 {[%clk 0:00:04]} 69. e4 {[%clk 0:00:06]}  Bxf6 {[%clk 0:00:03]} 70. gxf6 {[%clk 0:00:07]}  Rxf6 {[%clk 0:00:03]} 71. Re5 {[%clk 0:00:07]}  Rb6 {[%clk 0:00:02]} 72. Kf5 {[%clk 0:00:07]}  Kf7 {[%clk 0:00:03]} 73. Rc5 {[%clk 0:00:07]}  Rf6+ {[%clk 0:00:03]} 74. Ke5 {[%clk 0:00:07]}  Rh6 {[%clk 0:00:03]} 75. Rc7+ {[%clk 0:00:07]}  Ke8 {[%clk 0:00:04]} 76. Kd5 {[%clk 0:00:07]}  Rg6 {[%clk 0:00:04]} 77. Rc6 {[%clk 0:00:07]}  Rxc6 {[%clk 0:00:04]} 78. Kxc6 {[%clk 0:00:08]}  Ke7 {[%clk 0:00:04]} 79. Kd5 {[%clk 0:00:09]}  Kd7 {[%clk 0:00:04]} 80. e5 {[%clk 0:00:10]}  Ke7 {[%clk 0:00:04]} 81. e6 {[%clk 0:00:11]}  Ke8 {[%clk 0:00:05]} 82. Ke5 {[%clk 0:00:12]}  Ke7 {[%clk 0:00:05]} 83. Kd5 {[%clk 0:00:12]}  Ke8 {[%clk 0:00:06]} 84. Ke4 {[%clk 0:00:13]}  Ke7 {[%clk 0:00:06]} 85. Kf5 {[%clk 0:00:14]}  Ke8 {[%clk 0:00:07]} 86. Kf6 {[%clk 0:00:14]}  Kf8 {[%clk 0:00:07]} 87. e7+ {[%clk 0:00:15]}  Ke8 {[%clk 0:00:08]} 88. Ke6 {[%clk 0:00:16]} 1/2-1/2


[Site "https://www.chess.com"]

[Event "Titled Tuesday Blitz March 21 Late 2023"]
[White "Chigaev, Maksim"]
[Black "Korchmar, Vasiliy"]
[WhiteFideId "4108116"]
[BlackFideId "24131750"]
[WhiteElo "2547"]
[BlackElo "2370"]
[Result "0-1"]
[Round "06"]
[TimeControl "180+2"]
[Date "2023.03.21"]
[WhiteClock "0:00:03"]
[BlackClock "0:00:05"]

1. d4 {[%clk 0:03:00]}  d5 {[%clk 0:02:59]} 2. c4 {[%clk 0:03:00]}  c6 {[%clk 0:03:00]} 3. Nf3 {[%clk 0:03:00]}  Nf6 {[%clk 0:03:00]} 4. g3 {[%clk 0:02:50]}  g6 {[%clk 0:03:00]} 5. Bg2 {[%clk 0:02:50]}  Bg7 {[%clk 0:03:01]} 6. O-O {[%clk 0:02:49]}  O-O {[%clk 0:03:01]} 7. Nc3 {[%clk 0:02:44]}  dxc4 {[%clk 0:02:59]} 8. e4 {[%clk 0:02:45]}  Bg4 {[%clk 0:02:52]} 9. h3 {[%clk 0:02:45]}  Bxf3 {[%clk 0:02:52]} 10. Bxf3 {[%clk 0:02:46]}  e5 {[%clk 0:02:46]} 11. dxe5 {[%clk 0:02:43]}  Nfd7 {[%clk 0:02:46]} 12. e6 {[%clk 0:02:34]}  fxe6 {[%clk 0:02:45]} 13. Bg2 {[%clk 0:02:15]}  Ne5 {[%clk 0:02:44]} 14. f4 {[%clk 0:02:14]}  Nd3 {[%clk 0:02:40]} 15. e5 {[%clk 0:02:15]}  g5 {[%clk 0:02:09]} 16. Qh5 {[%clk 0:02:04]}  gxf4 {[%clk 0:02:05]} 17. Be4 {[%clk 0:01:53]}  h6 {[%clk 0:01:58]} 18. Bxf4 {[%clk 0:01:48]}  Qe8 {[%clk 0:01:03]} 19. Bg6 {[%clk 0:01:44]}  Nxf4 {[%clk 0:01:02]} 20. Rxf4 {[%clk 0:01:37]}  Qe7 {[%clk 0:01:00]} 21. Rxf8+ {[%clk 0:01:28]}  Qxf8 {[%clk 0:01:00]} 22. Ne4 {[%clk 0:01:17]}  Nd7 {[%clk 0:00:50]} 23. Rf1 {[%clk 0:01:11]}  Qb4 {[%clk 0:00:50]} 24. Nf6+ {[%clk 0:00:56]}  Bxf6 {[%clk 0:00:40]} 25. Qxh6 {[%clk 0:00:56]}  Qe7 {[%clk 0:00:23]} 26. exf6 {[%clk 0:00:50]}  Nxf6 {[%clk 0:00:23]} 27. Qg5 {[%clk 0:00:46]}  Rf8 {[%clk 0:00:14]} 28. Bf5+ {[%clk 0:00:29]}  Kh8 {[%clk 0:00:09]} 29. Bc2 {[%clk 0:00:15]}  Qg7 {[%clk 0:00:07]} 30. Qh4+ {[%clk 0:00:13]}  Kg8 {[%clk 0:00:07]} 31. Kg2 {[%clk 0:00:10]}  b5 {[%clk 0:00:07]} 32. Rf2 {[%clk 0:00:04]}  a5 {[%clk 0:00:05]} 33. Re2 {[%clk 0:00:02]}  Nd5 {[%clk 0:00:05]} 34. Rxe6 {[%clk 0:00:02]}  Rf6 {[%clk 0:00:02]} 35. Re8+ {[%clk 0:00:03]}  Kf7 {[%clk 0:00:02]} 36. Re2 {[%clk 0:00:02]}  Nf4+ {[%clk 0:00:03]} 37. Kh2 {[%clk 0:00:02]}  Nxe2 {[%clk 0:00:03]} 38. Qh5+ {[%clk 0:00:03]}  Kf8 {[%clk 0:00:02]} 39. Qxe2 {[%clk 0:00:03]}  Qe7 {[%clk 0:00:02]} 40. Qd2 {[%clk 0:00:03]}  Re6 {[%clk 0:00:03]} 41. Bd1 {[%clk 0:00:03]}  Re3 {[%clk 0:00:03]} 42. Qf2+ {[%clk 0:00:02]}  Ke8 {[%clk 0:00:03]} 43. Bg4 {[%clk 0:00:03]}  Qe5 {[%clk 0:00:03]} 44. h4 {[%clk 0:00:02]}  Ke7 {[%clk 0:00:03]} 45. Kh3 {[%clk 0:00:02]}  b4 {[%clk 0:00:03]} 46. h5 {[%clk 0:00:01]}  c3 {[%clk 0:00:04]} 47. bxc3 {[%clk 0:00:02]}  bxc3 {[%clk 0:00:04]} 48. h6 {[%clk 0:00:03]}  c2 {[%clk 0:00:05]} 49. h7 {[%clk 0:00:03]}  c1=Q {[%clk 0:00:05]} 0-1


[Site "https://www.chess.com"]

[Event "Titled Tuesday Blitz March 21 Late 2023"]
[White "Li, Ruifeng"]
[Black "Turayev, Shahruh"]
[WhiteFideId "2061074"]
[BlackFideId "14003856"]
[WhiteElo "2441"]
[BlackElo "2171"]
[Result "1-0"]
[Round "06"]
[TimeControl "180+2"]
[Date "2023.03.21"]
[WhiteClock "0:00:20"]
[BlackClock "0:00:04"]

1. b3 {[%clk 0:03:00]}  e5 {[%clk 0:02:59]} 2. Bb2 {[%clk 0:03:01]}  Nc6 {[%clk 0:02:59]} 3. e3 {[%clk 0:03:02]}  Nf6 {[%clk 0:02:59]} 4. Nf3 {[%clk 0:03:02]}  Bd6 {[%clk 0:02:56]} 5. d4 {[%clk 0:02:57]}  e4 {[%clk 0:02:49]} 6. Nfd2 {[%clk 0:02:55]}  O-O {[%clk 0:02:49]} 7. c4 {[%clk 0:02:54]}  Re8 {[%clk 0:02:49]} 8. Nc3 {[%clk 0:02:54]}  Bf8 {[%clk 0:02:47]} 9. a3 {[%clk 0:02:47]}  d6 {[%clk 0:02:43]} 10. Be2 {[%clk 0:02:45]}  Bf5 {[%clk 0:02:43]} 11. g4 {[%clk 0:02:45]}  Bg6 {[%clk 0:02:40]} 12. g5 {[%clk 0:02:45]}  Nd7 {[%clk 0:02:36]} 13. h4 {[%clk 0:02:45]}  f5 {[%clk 0:02:34]} 14. b4 {[%clk 0:02:03]}  Ne7 {[%clk 0:02:26]} 15. Qb3 {[%clk 0:01:58]}  c6 {[%clk 0:02:17]} 16. h5 {[%clk 0:01:57]}  Bf7 {[%clk 0:02:17]} 17. g6 {[%clk 0:01:58]}  hxg6 {[%clk 0:02:17]} 18. hxg6 {[%clk 0:01:58]}  Nxg6 {[%clk 0:02:17]} 19. O-O-O {[%clk 0:01:58]}  b5 {[%clk 0:02:15]} 20. Rdg1 {[%clk 0:01:58]}  Qf6 {[%clk 0:01:53]} 21. d5 {[%clk 0:01:48]}  bxc4 {[%clk 0:01:45]} 22. Bxc4 {[%clk 0:01:44]}  Nde5 {[%clk 0:01:44]} 23. dxc6 {[%clk 0:01:29]}  Nxc4 {[%clk 0:01:42]} 24. Nxc4 {[%clk 0:01:29]}  d5 {[%clk 0:01:36]} 25. Na5 {[%clk 0:00:40]}  d4 {[%clk 0:01:25]} 26. Nd5 {[%clk 0:00:40]}  Qe6 {[%clk 0:01:14]} 27. Bxd4 {[%clk 0:00:38]}  Ne5 {[%clk 0:00:50]} 28. Nc7 {[%clk 0:00:32]}  Qxb3 {[%clk 0:00:42]} 29. Nxb3 {[%clk 0:00:31]}  Bxb3 {[%clk 0:00:32]} 30. Bxe5 {[%clk 0:00:30]}  Rxe5 {[%clk 0:00:15]} 31. Nxa8 {[%clk 0:00:30]}  Re8 {[%clk 0:00:16]} 32. Kb2 {[%clk 0:00:27]}  Bf7 {[%clk 0:00:14]} 33. Nc7 {[%clk 0:00:27]}  Rc8 {[%clk 0:00:15]} 34. Nb5 {[%clk 0:00:27]}  Rxc6 {[%clk 0:00:14]} 35. Nd4 {[%clk 0:00:28]}  Rf6 {[%clk 0:00:11]} 36. Rc1 {[%clk 0:00:28]}  f4 {[%clk 0:00:11]} 37. Rc6 {[%clk 0:00:29]}  fxe3 {[%clk 0:00:06]} 38. Rxf6 {[%clk 0:00:28]}  gxf6 {[%clk 0:00:05]} 39. fxe3 {[%clk 0:00:27]}  Bc4 {[%clk 0:00:05]} 40. Kc3 {[%clk 0:00:25]}  Bd3 {[%clk 0:00:05]} 41. Nf5 {[%clk 0:00:26]}  Kf7 {[%clk 0:00:04]} 42. Rh8 {[%clk 0:00:24]}  a5 {[%clk 0:00:03]} 43. Nd4 {[%clk 0:00:17]}  axb4+ {[%clk 0:00:04]} 44. axb4 {[%clk 0:00:18]}  Bd6 {[%clk 0:00:05]} 45. b5 {[%clk 0:00:17]}  f5 {[%clk 0:00:04]} 46. b6 {[%clk 0:00:16]}  f4 {[%clk 0:00:05]} 47. exf4 {[%clk 0:00:16]}  Bxf4 {[%clk 0:00:05]} 48. b7 {[%clk 0:00:16]}  Kg6 {[%clk 0:00:04]} 49. b8=Q {[%clk 0:00:14]}  Bxb8 {[%clk 0:00:04]} 50. Rxb8 {[%clk 0:00:15]}  Kg5 {[%clk 0:00:05]} 51. Re8 {[%clk 0:00:15]}  Kf4 {[%clk 0:00:05]} 52. Re7 {[%clk 0:00:15]}  Bf1 {[%clk 0:00:05]} 53. Nc2 {[%clk 0:00:15]}  Bd3 {[%clk 0:00:05]} 54. Kd2 {[%clk 0:00:15]}  Kf3 {[%clk 0:00:05]} 55. Ne3 {[%clk 0:00:15]}  Bb5 {[%clk 0:00:05]} 56. Rf7+ {[%clk 0:00:16]}  Kg3 {[%clk 0:00:04]} 57. Rf6 {[%clk 0:00:16]}  Bd3 {[%clk 0:00:05]} 58. Kc3 {[%clk 0:00:17]}  Bb1 {[%clk 0:00:03]} 59. Kd4 {[%clk 0:00:17]}  Bd3 {[%clk 0:00:03]} 60. Nd5 {[%clk 0:00:17]}  Bb1 {[%clk 0:00:04]} 61. Nc3 {[%clk 0:00:18]}  Bd3 {[%clk 0:00:04]} 62. Nxe4+ {[%clk 0:00:19]}  Bxe4 {[%clk 0:00:04]} 63. Kxe4 {[%clk 0:00:20]} 1-0


[Site "https://www.chess.com"]

[Event "Titled Tuesday Blitz March 21 Late 2023"]
[White "Rostovtsev, Dmitry"]
[Black "Tregubov, Pavel V."]
[WhiteFideId "34278320"]
[BlackFideId "4115341"]
[WhiteElo "2280"]
[BlackElo "2425"]
[Result "0-1"]
[Round "06"]
[TimeControl "180+2"]
[Date "2023.03.21"]
[WhiteClock "0:00:12"]
[BlackClock "0:00:31"]

1. e4 {[%clk 0:03:00]}  c5 {[%clk 0:02:59]} 2. Nf3 {[%clk 0:03:00]}  e6 {[%clk 0:03:00]} 3. g3 {[%clk 0:03:01]}  d5 {[%clk 0:02:57]} 4. exd5 {[%clk 0:03:00]}  exd5 {[%clk 0:02:57]} 5. Bg2 {[%clk 0:03:00]}  Qe7+ {[%clk 0:02:54]} 6. Kf1 {[%clk 0:02:50]}  Nf6 {[%clk 0:02:53]} 7. d4 {[%clk 0:02:50]}  Nc6 {[%clk 0:02:51]} 8. Nc3 {[%clk 0:02:47]}  h6 {[%clk 0:02:36]} 9. Bf4 {[%clk 0:02:39]}  a6 {[%clk 0:02:23]} 10. Qd3 {[%clk 0:02:21]}  Be6 {[%clk 0:02:16]} 11. Re1 {[%clk 0:02:18]}  c4 {[%clk 0:02:08]} 12. Qd2 {[%clk 0:02:17]}  Qb4 {[%clk 0:02:06]} 13. Ne5 {[%clk 0:01:35]}  O-O-O {[%clk 0:01:33]} 14. h3 {[%clk 0:01:15]}  Qxb2 {[%clk 0:01:21]} 15. Rb1 {[%clk 0:01:11]}  Qa3 {[%clk 0:01:22]} 16. Nxc6 {[%clk 0:00:55]}  bxc6 {[%clk 0:01:22]} 17. Rb8+ {[%clk 0:00:52]}  Kd7 {[%clk 0:01:22]} 18. Rb7+ {[%clk 0:00:52]}  Ke8 {[%clk 0:01:21]} 19. Kg1 {[%clk 0:00:37]}  Bb4 {[%clk 0:01:18]} 20. Nb1 {[%clk 0:00:38]}  Bxd2 {[%clk 0:01:15]} 21. Nxa3 {[%clk 0:00:38]}  Bxf4 {[%clk 0:01:16]} 22. gxf4 {[%clk 0:00:39]}  Rd7 {[%clk 0:01:01]} 23. Rb8+ {[%clk 0:00:39]}  Rd8 {[%clk 0:01:01]} 24. Rb7 {[%clk 0:00:39]}  Nd7 {[%clk 0:00:54]} 25. Kh2 {[%clk 0:00:30]}  Ke7 {[%clk 0:00:54]} 26. Re1 {[%clk 0:00:24]}  Kd6 {[%clk 0:00:49]} 27. c3 {[%clk 0:00:19]}  Rb8 {[%clk 0:00:48]} 28. Ra7 {[%clk 0:00:14]}  Ra8 {[%clk 0:00:47]} 29. Rxa8 {[%clk 0:00:14]}  Rxa8 {[%clk 0:00:47]} 30. Nc2 {[%clk 0:00:15]}  Rb8 {[%clk 0:00:42]} 31. Ne3 {[%clk 0:00:15]}  g6 {[%clk 0:00:42]} 32. Kg3 {[%clk 0:00:14]}  Rb2 {[%clk 0:00:42]} 33. Ra1 {[%clk 0:00:12]}  Nf6 {[%clk 0:00:40]} 34. Bf3 {[%clk 0:00:12]}  h5 {[%clk 0:00:38]} 35. h4 {[%clk 0:00:12]}  a5 {[%clk 0:00:34]} 36. Bd1 {[%clk 0:00:12]}  Ne4+ {[%clk 0:00:33]} 37. Kf3 {[%clk 0:00:12]}  Rxf2# {[%clk 0:00:31]} 0-1


[Site "https://www.chess.com"]